[Event "November 21 Late 2023"]
[Site "https://www.chess.com"]
[Date "2023.11.21"]
[Round "1"]
[White "Prokhorov, Oleksandr"]
[Black "Bujisho, Benjamin"]
[Result "1-0"]
[Board "132"]
[TimeControl "180+1"]
[WhiteFideId "14105578"]
[BlackFideId "608610"]
[WhiteElo "1913"]
[BlackElo "2397"]
[WhiteTeam "UKR"]
[BlackTeam "FRA"]
[WhiteClock "0:00:39"]
[BlackClock "0:00:15"]

1. g3 {[%clk 0:02:54]}  d5 {[%clk 0:02:43]} 2. Bg2 {[%clk 0:02:51]}  c6 {[%clk 0:02:43]} 3. c4 {[%clk 0:02:48]}  dxc4 {[%clk 0:02:41]} 4. Na3 {[%clk 0:02:46]}  Be6 {[%clk 0:02:37]} 5. Qc2 {[%clk 0:02:45]}  Nd7 {[%clk 0:02:20]} 6. Nxc4 {[%clk 0:02:38]}  Ngf6 {[%clk 0:02:21]} 7. e4 {[%clk 0:02:33]}  g6 {[%clk 0:02:15]} 8. Ne2 {[%clk 0:02:33]}  Bg7 {[%clk 0:02:14]} 9. O-O {[%clk 0:02:33]}  O-O {[%clk 0:02:14]} 10. d4 {[%clk 0:02:26]}  Nb6 {[%clk 0:02:00]} 11. b3 {[%clk 0:02:23]}  Nxc4 {[%clk 0:01:55]} 12. bxc4 {[%clk 0:02:19]}  c5 {[%clk 0:01:55]} 13. d5 {[%clk 0:02:16]}  Bg4 {[%clk 0:01:54]} 14. Bb2 {[%clk 0:02:15]}  Bxe2 {[%clk 0:01:33]} 15. Qxe2 {[%clk 0:02:09]}  Ne8 {[%clk 0:01:17]} 16. Bxg7 {[%clk 0:02:02]}  Kxg7 {[%clk 0:01:17]} 17. f4 {[%clk 0:02:02]}  f6 {[%clk 0:01:11]} 18. e5 {[%clk 0:02:02]}  Qc7 {[%clk 0:01:09]} 19. Rab1 {[%clk 0:01:58]}  Rb8 {[%clk 0:01:06]} 20. h4 {[%clk 0:01:56]}  b6 {[%clk 0:01:05]} 21. h5 {[%clk 0:01:56]}  g5 {[%clk 0:00:53]} 22. fxg5 {[%clk 0:01:52]}  Qxe5 {[%clk 0:00:51]} 23. Qxe5 {[%clk 0:01:46]}  fxe5 {[%clk 0:00:51]} 24. Rxf8 {[%clk 0:01:44]}  Kxf8 {[%clk 0:00:51]} 25. Rf1+ {[%clk 0:01:44]}  Kg7 {[%clk 0:00:50]} 26. Bh3 {[%clk 0:01:30]}  Nd6 {[%clk 0:00:50]} 27. Be6 {[%clk 0:01:24]}  h6 {[%clk 0:00:44]} 28. gxh6+ {[%clk 0:01:10]}  Kxh6 {[%clk 0:00:45]} 29. g4 {[%clk 0:01:07]}  Kg5 {[%clk 0:00:44]} 30. Kg2 {[%clk 0:01:04]}  e4 {[%clk 0:00:43]} 31. Kg3 {[%clk 0:01:03]}  b5 {[%clk 0:00:41]} 32. cxb5 {[%clk 0:00:54]}  c4 {[%clk 0:00:42]} 33. Rh1 {[%clk 0:00:51]}  c3 {[%clk 0:00:35]} 34. h6 {[%clk 0:00:51]}  c2 {[%clk 0:00:33]} 35. h7 {[%clk 0:00:52]}  Rh8 {[%clk 0:00:23]} 36. Bg8 {[%clk 0:00:52]}  Ne8 {[%clk 0:00:22]} 37. Rc1 {[%clk 0:00:47]}  Nf6 {[%clk 0:00:22]} 38. Rxc2 {[%clk 0:00:46]}  Nxg8 {[%clk 0:00:19]} 39. Rc8 {[%clk 0:00:46]}  Rxh7 {[%clk 0:00:18]} 40. Rxg8+ {[%clk 0:00:46]}  Kf6 {[%clk 0:00:19]} 41. Kf4 {[%clk 0:00:45]}  Rh2 {[%clk 0:00:17]} 42. Ra8 {[%clk 0:00:41]}  Rxa2 {[%clk 0:00:17]} 43. b6 {[%clk 0:00:42]}  Rf2+ {[%clk 0:00:17]} 44. Kxe4 {[%clk 0:00:41]}  axb6 {[%clk 0:00:15]} 45. Rf8+ {[%clk 0:00:39]} 1-0

[Event "November 21 Late 2023"]
[Site "https://www.chess.com"]
[Date "2023.11.21"]
[Round "1"]
[White "GatoRojo150"]
[Black "Golubenko, Valentina"]
[Result "1-0"]
[Board "133"]
[TimeControl "180+1"]
[BlackFideId "4501993"]
[WhiteElo "2579"]
[BlackElo "2126"]
[BlackTeam "CRO"]
[WhiteClock "0:01:52"]
[BlackClock "0:00:13"]

1. e4 {[%clk 0:02:58]}  e6 {[%clk 0:02:59]} 2. d4 {[%clk 0:02:58]}  d5 {[%clk 0:02:58]} 3. Nc3 {[%clk 0:02:58]}  c5 {[%clk 0:02:57]} 4. exd5 {[%clk 0:02:57]}  exd5 {[%clk 0:02:56]} 5. dxc5 {[%clk 0:02:58]}  Nf6 {[%clk 0:02:56]} 6. Bg5 {[%clk 0:02:56]}  Bxc5 {[%clk 0:02:46]} 7. Nf3 {[%clk 0:02:53]}  O-O {[%clk 0:02:45]} 8. Be2 {[%clk 0:02:46]}  Be6 {[%clk 0:01:43]} 9. O-O {[%clk 0:02:39]}  Nc6 {[%clk 0:01:40]} 10. Bd3 {[%clk 0:02:26]}  h6 {[%clk 0:01:37]} 11. Bf4 {[%clk 0:02:22]}  Bg4 {[%clk 0:01:24]} 12. h3 {[%clk 0:02:20]}  Be6 {[%clk 0:01:23]} 13. Qd2 {[%clk 0:02:20]}  Rc8 {[%clk 0:01:19]} 14. Bxh6 {[%clk 0:02:19]}  d4 {[%clk 0:00:29]} 15. Ne2 {[%clk 0:02:17]}  Bd5 {[%clk 0:00:21]} 16. Nh4 {[%clk 0:02:01]}  gxh6 {[%clk 0:00:18]} 17. Qxh6 {[%clk 0:02:02]}  Ne5 {[%clk 0:00:17]} 18. Nf5 {[%clk 0:02:00]}  Ne8 {[%clk 0:00:16]} 19. Ne7+ {[%clk 0:01:52]}  Qxe7 {[%clk 0:00:13]} 20. Qh7# {[%clk 0:01:52]} 1-0

[Event "November 21 Late 2023"]
[Site "https://www.chess.com"]
[Date "2023.11.21"]
[Round "1"]
[White "Tsiolakidis, Anastasios"]
[Black "Guerra Tulcan, Lenin"]
[Result "0-1"]
[Board "134"]
[TimeControl "180+1"]
[WhiteFideId "4201477"]
[BlackFideId "3601382"]
[WhiteElo "2292"]
[BlackElo "2368"]
[WhiteTeam "GRE"]
[BlackTeam "ECU"]
[WhiteClock "0:02:41"]
[BlackClock "0:02:30"]

1. d4 {[%clk 0:03:00]}  Nf6 {[%clk 0:03:00]} 2. c4 {[%clk 0:03:00]}  c5 {[%clk 0:03:00]} 3. d5 {[%clk 0:03:00]}  b5 {[%clk 0:03:01]} 4. cxb5 {[%clk 0:03:01]}  a6 {[%clk 0:03:01]} 5. bxa6 {[%clk 0:03:02]}  Bxa6 {[%clk 0:03:02]} 6. Nc3 {[%clk 0:03:02]}  d6 {[%clk 0:03:03]} 7. g3 {[%clk 0:03:02]}  g6 {[%clk 0:03:03]} 8. Bg2 {[%clk 0:03:03]}  Bg7 {[%clk 0:03:03]} 9. f4 {[%clk 0:03:03]}  O-O {[%clk 0:03:03]} 10. Nf3 {[%clk 0:03:04]}  Bb7 {[%clk 0:02:57]} 11. e4 {[%clk 0:03:03]}  Ba6 {[%clk 0:02:57]} 12. h3 {[%clk 0:03:03]}  Nbd7 {[%clk 0:02:57]} 13. Be3 {[%clk 0:03:03]}  Qa5 {[%clk 0:02:52]} 14. Qd2 {[%clk 0:03:03]}  Rfb8 {[%clk 0:02:51]} 15. Kf2 {[%clk 0:03:02]}  Qb4 {[%clk 0:02:51]} 16. Rab1 {[%clk 0:03:01]}  Nxe4+ {[%clk 0:02:50]} 17. Nxe4 {[%clk 0:03:01]}  Qxe4 {[%clk 0:02:51]} 18. Rhe1 {[%clk 0:02:56]}  Qd3 {[%clk 0:02:50]} 19. Qc1 {[%clk 0:02:54]}  Qc4 {[%clk 0:02:39]} 20. Qd2 {[%clk 0:02:51]}  Bb7 {[%clk 0:02:38]} 21. Rbd1 {[%clk 0:02:47]}  Rxa2 {[%clk 0:02:37]} 22. Re2 {[%clk 0:02:45]}  Rxb2 {[%clk 0:02:34]} 23. Qxb2 {[%clk 0:02:46]}  Bxb2 {[%clk 0:02:35]} 24. Rxb2 {[%clk 0:02:47]}  Bxd5 {[%clk 0:02:32]} 25. Nd2 {[%clk 0:02:41]}  Rxb2 {[%clk 0:02:30]} 0-1

[Event "November 21 Late 2023"]
[Site "https://www.chess.com"]
[Date "2023.11.21"]
[Round "1"]
[White "Manukyan, Sargis A."]
[Black "Vemparala, Nikash"]
[Result "1-0"]
[Board "135"]
[TimeControl "180+1"]
[WhiteFideId "13303970"]
[BlackFideId "30960967"]
[WhiteElo "2204"]
[BlackElo "2069"]
[WhiteTeam "ARM"]
[BlackTeam "USA"]
[WhiteClock "0:02:17"]
[BlackClock "0:01:50"]

1. d4 {[%clk 0:02:45]}  d5 {[%clk 0:02:59]} 2. c4 {[%clk 0:02:42]}  e6 {[%clk 0:02:58]} 3. Nc3 {[%clk 0:02:41]}  Nf6 {[%clk 0:02:55]} 4. Bg5 {[%clk 0:02:39]}  Be7 {[%clk 0:02:51]} 5. e3 {[%clk 0:02:39]}  O-O {[%clk 0:02:47]} 6. Nf3 {[%clk 0:02:39]}  b6 {[%clk 0:02:41]} 7. cxd5 {[%clk 0:02:33]}  exd5 {[%clk 0:02:40]} 8. Bd3 {[%clk 0:02:32]}  h6 {[%clk 0:02:38]} 9. Bh4 {[%clk 0:02:32]}  Bb7 {[%clk 0:02:32]} 10. O-O {[%clk 0:02:32]}  Ne4 {[%clk 0:02:30]} 11. Bxe7 {[%clk 0:02:29]}  Qxe7 {[%clk 0:02:29]} 12. Rc1 {[%clk 0:02:30]}  c5 {[%clk 0:02:22]} 13. dxc5 {[%clk 0:02:28]}  bxc5 {[%clk 0:02:23]} 14. Nd2 {[%clk 0:02:24]}  Nxc3 {[%clk 0:02:03]} 15. Rxc3 {[%clk 0:02:21]}  Nc6 {[%clk 0:02:01]} 16. Bb1 {[%clk 0:02:21]}  Ne5 {[%clk 0:01:54]} 17. Qc2 {[%clk 0:02:19]}  Rac8 {[%clk 0:01:50]} 18. Qh7# {[%clk 0:02:17]} 1-0

[Event "November 21 Late 2023"]
[Site "https://www.chess.com"]
[Date "2023.11.21"]
[Round "1"]
[White "Chylewski, Patryk"]
[Black "Liu, Leonardo"]
[Result "0-1"]
[Board "139"]
[TimeControl "180+1"]
[WhiteFideId "1186191"]
[BlackFideId "30965780"]
[WhiteElo "2176"]
[BlackElo "2256"]
[WhiteTeam "POL"]
[BlackTeam "USA"]
[WhiteClock "0:01:14"]
[BlackClock "0:02:16"]

1. e4 {[%clk 0:03:00]}  c5 {[%clk 0:02:59]} 2. Nf3 {[%clk 0:02:57]}  g6 {[%clk 0:02:53]} 3. h4 {[%clk 0:02:46]}  h5 {[%clk 0:02:50]} 4. Bc4 {[%clk 0:02:39]}  e6 {[%clk 0:02:50]} 5. d3 {[%clk 0:02:34]}  d5 {[%clk 0:02:49]} 6. exd5 {[%clk 0:02:32]}  exd5 {[%clk 0:02:50]} 7. Qe2+ {[%clk 0:02:31]}  Be6 {[%clk 0:02:49]} 8. Bb5+ {[%clk 0:02:30]}  Nd7 {[%clk 0:02:48]} 9. Bg5 {[%clk 0:02:21]}  Be7 {[%clk 0:02:48]} 10. Nc3 {[%clk 0:02:22]}  d4 {[%clk 0:02:45]} 11. Ne4 {[%clk 0:02:19]}  Qa5+ {[%clk 0:02:44]} 12. Nfd2 {[%clk 0:01:37]}  Qxb5 {[%clk 0:02:44]} 13. Bxe7 {[%clk 0:01:37]}  Kxe7 {[%clk 0:02:41]} 14. O-O {[%clk 0:01:35]}  Ngf6 {[%clk 0:02:41]} 15. Ng5 {[%clk 0:01:32]}  Rae8 {[%clk 0:02:36]} 16. Nc4 {[%clk 0:01:26]}  Qc6 {[%clk 0:02:31]} 17. a4 {[%clk 0:01:22]}  Kd8 {[%clk 0:02:29]} 18. Qd2 {[%clk 0:01:22]}  Nd5 {[%clk 0:02:22]} 19. Rfe1 {[%clk 0:01:19]}  Kc8 {[%clk 0:02:21]} 20. b4 {[%clk 0:01:17]}  Nxb4 {[%clk 0:02:16]} 21. Qxb4 {[%clk 0:01:14]}  cxb4 {[%clk 0:02:16]} 0-1

[Event "November 21 Late 2023"]
[Site "https://www.chess.com"]
[Date "2023.11.21"]
[Round "1"]
[White "aghasiyevkamal"]
[Black "le-castor-faineant"]
[Result "1/2-1/2"]
[Board "141"]
[TimeControl "180+1"]
[WhiteElo "2565"]
[BlackElo "2244"]
[WhiteClock "0:00:06"]
[BlackClock "0:00:10"]

1. d4 {[%clk 0:02:59]}  Nf6 {[%clk 0:02:59]} 2. c4 {[%clk 0:02:59]}  e6 {[%clk 0:02:59]} 3. g3 {[%clk 0:02:59]}  Bb4+ {[%clk 0:02:58]} 4. Bd2 {[%clk 0:02:58]}  Qe7 {[%clk 0:02:58]} 5. Bg2 {[%clk 0:02:55]}  Bxd2+ {[%clk 0:02:58]} 6. Qxd2 {[%clk 0:02:52]}  Nc6 {[%clk 0:02:55]} 7. Nc3 {[%clk 0:02:52]}  d5 {[%clk 0:02:54]} 8. cxd5 {[%clk 0:02:42]}  exd5 {[%clk 0:02:53]} 9. Nxd5 {[%clk 0:02:43]}  Nxd5 {[%clk 0:02:53]} 10. Bxd5 {[%clk 0:02:43]}  O-O {[%clk 0:02:54]} 11. Bg2 {[%clk 0:02:38]}  Rd8 {[%clk 0:02:48]} 12. Nf3 {[%clk 0:02:27]}  Bg4 {[%clk 0:02:47]} 13. O-O {[%clk 0:01:58]}  Bxf3 {[%clk 0:02:45]} 14. exf3 {[%clk 0:01:53]}  Nxd4 {[%clk 0:02:44]} 15. Rfe1 {[%clk 0:01:52]}  Qf6 {[%clk 0:02:35]} 16. Qd3 {[%clk 0:01:46]}  c5 {[%clk 0:02:29]} 17. f4 {[%clk 0:01:39]}  Rab8 {[%clk 0:02:23]} 18. Qc4 {[%clk 0:01:31]}  b6 {[%clk 0:02:22]} 19. Re5 {[%clk 0:01:30]}  g6 {[%clk 0:01:59]} 20. Rae1 {[%clk 0:01:28]}  Rd7 {[%clk 0:01:52]} 21. Qa4 {[%clk 0:01:16]}  Qd6 {[%clk 0:01:37]} 22. Rd5 {[%clk 0:01:14]}  Qxd5 {[%clk 0:01:23]} 23. Bxd5 {[%clk 0:01:13]}  Rxd5 {[%clk 0:01:24]} 24. Re8+ {[%clk 0:01:07]}  Rxe8 {[%clk 0:01:21]} 25. Qxe8+ {[%clk 0:01:07]}  Kg7 {[%clk 0:01:22]} 26. Qe7 {[%clk 0:01:04]}  a5 {[%clk 0:00:57]} 27. g4 {[%clk 0:01:04]}  Ne6 {[%clk 0:00:48]} 28. g5 {[%clk 0:00:54]}  Rf5 {[%clk 0:00:42]} 29. Qd6 {[%clk 0:00:54]}  Nxf4 {[%clk 0:00:40]} 30. Qxb6 {[%clk 0:00:51]}  Rxg5+ {[%clk 0:00:35]} 31. Kf1 {[%clk 0:00:45]}  Rd5 {[%clk 0:00:34]} 32. f3 {[%clk 0:00:42]}  a4 {[%clk 0:00:23]} 33. Qa5 {[%clk 0:00:39]}  Rd4 {[%clk 0:00:22]} 34. Qc3 {[%clk 0:00:37]}  Kg8 {[%clk 0:00:17]} 35. Qe3 {[%clk 0:00:27]}  g5 {[%clk 0:00:16]} 36. Qe8+ {[%clk 0:00:23]}  Kg7 {[%clk 0:00:16]} 37. Qe5+ {[%clk 0:00:23]}  f6 {[%clk 0:00:16]} 38. Qe7+ {[%clk 0:00:22]}  Kg6 {[%clk 0:00:16]} 39. Ke1 {[%clk 0:00:19]}  h5 {[%clk 0:00:15]} 40. Qe8+ {[%clk 0:00:19]}  Kh6 {[%clk 0:00:14]} 41. Qg8 {[%clk 0:00:18]}  h4 {[%clk 0:00:14]} 42. b3 {[%clk 0:00:17]}  axb3 {[%clk 0:00:13]} 43. axb3 {[%clk 0:00:18]}  h3 {[%clk 0:00:14]} 44. Kf2 {[%clk 0:00:16]}  Rd2+ {[%clk 0:00:13]} 45. Kf1 {[%clk 0:00:14]}  Rxh2 {[%clk 0:00:13]} 46. Qf8+ {[%clk 0:00:13]}  Kg6 {[%clk 0:00:13]} 47. Qg8+ {[%clk 0:00:11]}  Kf5 {[%clk 0:00:13]} 48. Qc8+ {[%clk 0:00:09]}  Kg6 {[%clk 0:00:13]} 49. Qg8+ {[%clk 0:00:07]}  Kf5 {[%clk 0:00:12]} 50. Qc8+ {[%clk 0:00:07]}  Kg6 {[%clk 0:00:10]} 51. Qg8+ {[%clk 0:00:06]} 1/2-1/2

[Event "November 21 Late 2023"]
[Site "https://www.chess.com"]
[Date "2023.11.21"]
[Round "1"]
[White "Rodriguez Dominguez, Melissa"]
[Black "Liang, Justin"]
[Result "0-1"]
[Board "142"]
[TimeControl "180+1"]
[WhiteFideId "3517560"]
[BlackFideId "2099942"]
[WhiteElo "2012"]
[BlackElo "2563"]
[WhiteTeam "CUB"]
[BlackTeam "USA"]
[WhiteClock "0:00:00"]
[BlackClock "0:00:09"]

1. e4 {[%clk 0:00:54]}  c5 {[%clk 0:02:44]} 2. Nf3 {[%clk 0:00:53]}  e6 {[%clk 0:02:44]} 3. d4 {[%clk 0:00:51]}  cxd4 {[%clk 0:02:43]} 4. Nxd4 {[%clk 0:00:50]}  Nc6 {[%clk 0:02:43]} 5. Nb5 {[%clk 0:00:51]}  d6 {[%clk 0:02:32]} 6. c4 {[%clk 0:00:49]}  Nf6 {[%clk 0:02:30]} 7. N1c3 {[%clk 0:00:49]}  Be7 {[%clk 0:02:28]} 8. Be2 {[%clk 0:00:48]}  b6 {[%clk 0:02:12]} 9. O-O {[%clk 0:00:48]}  Bb7 {[%clk 0:02:11]} 10. f3 {[%clk 0:00:47]}  O-O {[%clk 0:02:11]} 11. Be3 {[%clk 0:00:47]}  a6 {[%clk 0:02:10]} 12. Na3 {[%clk 0:00:47]}  Rc8 {[%clk 0:02:09]} 13. Qd2 {[%clk 0:00:47]}  Nd7 {[%clk 0:02:08]} 14. Rfd1 {[%clk 0:00:39]}  Qc7 {[%clk 0:02:08]} 15. Rac1 {[%clk 0:00:37]}  Qb8 {[%clk 0:02:08]} 16. Nc2 {[%clk 0:00:36]}  Rfe8 {[%clk 0:02:06]} 17. b4 {[%clk 0:00:33]}  Nce5 {[%clk 0:02:04]} 18. Na3 {[%clk 0:00:29]}  h5 {[%clk 0:01:07]} 19. Kh1 {[%clk 0:00:23]}  h4 {[%clk 0:01:07]} 20. f4 {[%clk 0:00:23]}  Ng6 {[%clk 0:01:01]} 21. Bf3 {[%clk 0:00:23]}  Qa8 {[%clk 0:00:57]} 22. Qf2 {[%clk 0:00:21]}  Bd8 {[%clk 0:00:55]} 23. Ne2 {[%clk 0:00:17]}  Bc7 {[%clk 0:00:54]} 24. Nc3 {[%clk 0:00:16]}  Nf6 {[%clk 0:00:52]} 25. e5 {[%clk 0:00:13]}  dxe5 {[%clk 0:00:52]} 26. fxe5 {[%clk 0:00:13]}  Bxf3 {[%clk 0:00:41]} 27. Qxf3 {[%clk 0:00:09]}  Qxf3 {[%clk 0:00:41]} 28. gxf3 {[%clk 0:00:10]}  Nxe5 {[%clk 0:00:42]} 29. f4 {[%clk 0:00:09]}  Neg4 {[%clk 0:00:42]} 30. Bg1 {[%clk 0:00:08]}  h3 {[%clk 0:00:43]} 31. Ne2 {[%clk 0:00:07]}  Ne4 {[%clk 0:00:42]} 32. Rf1 {[%clk 0:00:05]}  Red8 {[%clk 0:00:41]} 33. Ng3 {[%clk 0:00:05]}  Nd2 {[%clk 0:00:35]} 34. Rfd1 {[%clk 0:00:04]}  Nf3 {[%clk 0:00:33]} 35. Rf1 {[%clk 0:00:04]}  Nxg1 {[%clk 0:00:32]} 36. Kxg1 {[%clk 0:00:04]}  Rd2 {[%clk 0:00:30]} 37. c5 {[%clk 0:00:04]}  Rg2+ {[%clk 0:00:28]} 38. Kh1 {[%clk 0:00:04]}  Rxh2+ {[%clk 0:00:29]} 39. Kg1 {[%clk 0:00:04]}  Rg2+ {[%clk 0:00:29]} 40. Kh1 {[%clk 0:00:04]}  bxc5 {[%clk 0:00:22]} 41. Rxc5 {[%clk 0:00:03]}  Rh2+ {[%clk 0:00:21]} 42. Kg1 {[%clk 0:00:03]}  Bb6 {[%clk 0:00:22]} 43. Nc4 {[%clk 0:00:02]}  Bxc5+ {[%clk 0:00:19]} 44. bxc5 {[%clk 0:00:03]}  Rg2+ {[%clk 0:00:18]} 45. Kh1 {[%clk 0:00:03]}  Rxg3 {[%clk 0:00:19]} 46. Nd6 {[%clk 0:00:02]}  Rc6 {[%clk 0:00:16]} 47. f5 {[%clk 0:00:02]}  exf5 {[%clk 0:00:15]} 48. Nxf5 {[%clk 0:00:00]}  Ne3 {[%clk 0:00:09]} 0-1

[Event "November 21 Late 2023"]
[Site "https://www.chess.com"]
[Date "2023.11.21"]
[Round "1"]
[White "WindWhistler11"]
[Black "Quirke, Jeffrey"]
[Result "1-0"]
[Board "143"]
[TimeControl "180+1"]
[BlackFideId "2013029"]
[WhiteElo "2563"]
[BlackElo "2229"]
[BlackTeam "USA"]
[WhiteClock "0:00:35"]
[BlackClock "0:00:00"]

1. Nf3 {[%clk 0:03:00]}  Nf6 {[%clk 0:02:57]} 2. g3 {[%clk 0:02:59]}  g6 {[%clk 0:02:55]} 3. Bg2 {[%clk 0:03:00]}  Bg7 {[%clk 0:02:54]} 4. O-O {[%clk 0:03:00]}  O-O {[%clk 0:02:50]} 5. d4 {[%clk 0:03:00]}  d5 {[%clk 0:02:49]} 6. b3 {[%clk 0:03:00]}  c5 {[%clk 0:02:46]} 7. Bb2 {[%clk 0:02:58]}  cxd4 {[%clk 0:02:44]} 8. Nxd4 {[%clk 0:02:51]}  Nc6 {[%clk 0:02:45]} 9. Nxc6 {[%clk 0:02:50]}  bxc6 {[%clk 0:02:43]} 10. c4 {[%clk 0:02:50]}  Be6 {[%clk 0:02:35]} 11. Nd2 {[%clk 0:02:43]}  a5 {[%clk 0:02:30]} 12. Qc1 {[%clk 0:02:29]}  a4 {[%clk 0:02:28]} 13. b4 {[%clk 0:02:28]}  a3 {[%clk 0:01:35]} 14. Bxa3 {[%clk 0:02:15]}  Ne4 {[%clk 0:01:30]} 15. Bb2 {[%clk 0:01:52]}  Bxb2 {[%clk 0:01:28]} 16. Qxb2 {[%clk 0:01:52]}  Nxd2 {[%clk 0:01:29]} 17. Qxd2 {[%clk 0:01:51]}  Qb6 {[%clk 0:01:11]} 18. c5 {[%clk 0:01:39]}  Qb5 {[%clk 0:01:10]} 19. Rfb1 {[%clk 0:01:34]}  Ra3 {[%clk 0:01:08]} 20. Bf1 {[%clk 0:01:32]}  Rfa8 {[%clk 0:01:06]} 21. e3 {[%clk 0:01:31]}  Qa4 {[%clk 0:01:02]} 22. Rb2 {[%clk 0:01:30]}  d4 {[%clk 0:00:32]} 23. Qxd4 {[%clk 0:01:16]}  Bxa2 {[%clk 0:00:30]} 24. b5 {[%clk 0:01:08]}  cxb5 {[%clk 0:00:22]} 25. Bxb5 {[%clk 0:01:06]}  Qxd4 {[%clk 0:00:18]} 26. exd4 {[%clk 0:01:05]}  Bd5 {[%clk 0:00:15]} 27. Rxa3 {[%clk 0:00:55]}  Rxa3 {[%clk 0:00:16]} 28. f4 {[%clk 0:00:50]}  Rc3 {[%clk 0:00:12]} 29. Kf2 {[%clk 0:00:46]}  f5 {[%clk 0:00:10]} 30. Be2 {[%clk 0:00:44]}  Kf7 {[%clk 0:00:09]} 31. Rd2 {[%clk 0:00:42]}  h6 {[%clk 0:00:08]} 32. Rd3 {[%clk 0:00:42]}  Rc2 {[%clk 0:00:08]} 33. Ke3 {[%clk 0:00:41]}  Kf6 {[%clk 0:00:06]} 34. h3 {[%clk 0:00:40]}  e6 {[%clk 0:00:06]} 35. Bf3 {[%clk 0:00:39]}  g5 {[%clk 0:00:05]} 36. Bxd5 {[%clk 0:00:38]}  exd5 {[%clk 0:00:06]} 37. Kf3 {[%clk 0:00:36]}  h5 {[%clk 0:00:05]} 38. fxg5+ {[%clk 0:00:36]}  Kxg5 {[%clk 0:00:05]} 39. h4+ {[%clk 0:00:35]}  Kf6 {[%clk 0:00:05]} 40. Ra3 {[%clk 0:00:35]}  Rd2 {[%clk 0:00:02]} 41. Ke3 {[%clk 0:00:32]}  Rg2 {[%clk 0:00:02]} 42. Ra6+ {[%clk 0:00:33]}  Kf7 {[%clk 0:00:02]} 43. Kf3 {[%clk 0:00:34]}  Rd2 {[%clk 0:00:01]} 44. Ra7+ {[%clk 0:00:35]}  Kf6 {[%clk 0:00:00]} 45. Ra4 {[%clk 0:00:35]} 1-0

[Event "November 21 Late 2023"]
[Site "https://www.chess.com"]
[Date "2023.11.21"]
[Round "1"]
[White "Deviprasath, Sharvesh"]
[Black "Broca Jimenez, Fernando"]
[Result "1-0"]
[Board "147"]
[TimeControl "180+1"]
[WhiteFideId "30938228"]
[BlackFideId "5104742"]
[WhiteElo "2168"]
[BlackElo "2062"]
[WhiteTeam "USA"]
[BlackTeam "MEX"]
[WhiteClock "0:00:42"]
[BlackClock "0:00:09"]

1. e4 {[%clk 0:02:53]}  c5 {[%clk 0:02:58]} 2. c3 {[%clk 0:02:52]}  Nf6 {[%clk 0:02:56]} 3. d3 {[%clk 0:02:52]}  Nc6 {[%clk 0:02:52]} 4. Nd2 {[%clk 0:02:53]}  g6 {[%clk 0:02:52]} 5. g3 {[%clk 0:02:50]}  Bg7 {[%clk 0:02:52]} 6. Bg2 {[%clk 0:02:51]}  O-O {[%clk 0:02:51]} 7. h3 {[%clk 0:02:51]}  d5 {[%clk 0:02:51]} 8. Ngf3 {[%clk 0:02:49]}  e5 {[%clk 0:02:45]} 9. O-O {[%clk 0:02:45]}  Re8 {[%clk 0:02:41]} 10. Re1 {[%clk 0:02:42]}  h6 {[%clk 0:02:33]} 11. Qa4 {[%clk 0:02:40]}  Be6 {[%clk 0:02:32]} 12. a3 {[%clk 0:02:37]}  a6 {[%clk 0:02:25]} 13. Qc2 {[%clk 0:02:35]}  Rc8 {[%clk 0:02:19]} 14. exd5 {[%clk 0:02:30]}  Nxd5 {[%clk 0:02:01]} 15. Nc4 {[%clk 0:02:30]}  Qc7 {[%clk 0:01:33]} 16. Bd2 {[%clk 0:02:21]}  b5 {[%clk 0:01:22]} 17. Ne3 {[%clk 0:02:20]}  Qd7 {[%clk 0:01:20]} 18. Nxd5 {[%clk 0:02:13]}  Bxd5 {[%clk 0:01:21]} 19. Be3 {[%clk 0:02:09]}  c4 {[%clk 0:01:12]} 20. dxc4 {[%clk 0:01:52]}  Bxc4 {[%clk 0:01:13]} 21. b3 {[%clk 0:01:38]}  Be6 {[%clk 0:01:05]} 22. Rad1 {[%clk 0:01:36]}  Qc7 {[%clk 0:01:03]} 23. Nd2 {[%clk 0:01:22]}  Na5 {[%clk 0:00:49]} 24. b4 {[%clk 0:01:05]}  Nc4 {[%clk 0:00:38]} 25. Nxc4 {[%clk 0:01:02]}  Qxc4 {[%clk 0:00:39]} 26. Bd2 {[%clk 0:00:57]}  Red8 {[%clk 0:00:26]} 27. Be3 {[%clk 0:00:45]}  Rxd1 {[%clk 0:00:21]} 28. Rxd1 {[%clk 0:00:46]}  Qxc3 {[%clk 0:00:21]} 29. Qd3 {[%clk 0:00:44]}  Qxd3 {[%clk 0:00:20]} 30. Rxd3 {[%clk 0:00:45]}  f5 {[%clk 0:00:15]} 31. Rd6 {[%clk 0:00:44]}  Rc1+ {[%clk 0:00:09]} 32. Bxc1 {[%clk 0:00:42]} 1-0

[Event "November 21 Late 2023"]
[Site "https://www.chess.com"]
[Date "2023.11.21"]
[Round "1"]
[White "Souza, Gustavo Horokoski De"]
[Black "Ozates, Tuna"]
[Result "0-1"]
[Board "148"]
[TimeControl "180+1"]
[WhiteFideId "2146584"]
[BlackFideId "6354521"]
[WhiteElo "1824"]
[BlackElo "2151"]
[WhiteTeam "BRA"]
[BlackTeam "TUR"]
[WhiteClock "0:00:00"]
[BlackClock "0:00:15"]

1. d4 {[%clk 0:02:40]}  Nf6 {[%clk 0:02:59]} 2. c4 {[%clk 0:02:40]}  e6 {[%clk 0:02:59]} 3. Nc3 {[%clk 0:02:38]}  Bb4 {[%clk 0:02:59]} 4. e3 {[%clk 0:01:32]}  O-O {[%clk 0:02:56]} 5. Ne2 {[%clk 0:01:31]}  c6 {[%clk 0:02:56]} 6. a3 {[%clk 0:01:30]}  Ba5 {[%clk 0:02:56]} 7. b4 {[%clk 0:01:30]}  Bc7 {[%clk 0:02:56]} 8. Bb2 {[%clk 0:01:30]}  d6 {[%clk 0:02:57]} 9. Ng3 {[%clk 0:01:25]}  Nbd7 {[%clk 0:02:55]} 10. Bd3 {[%clk 0:01:26]}  e5 {[%clk 0:02:53]} 11. O-O {[%clk 0:01:21]}  Re8 {[%clk 0:02:54]} 12. Nge4 {[%clk 0:01:20]}  Nxe4 {[%clk 0:02:50]} 13. Nxe4 {[%clk 0:01:10]}  Nf6 {[%clk 0:02:47]} 14. Nxf6+ {[%clk 0:01:08]}  Qxf6 {[%clk 0:02:47]} 15. dxe5 {[%clk 0:01:05]}  dxe5 {[%clk 0:02:48]} 16. Be4 {[%clk 0:01:03]}  Be6 {[%clk 0:02:46]} 17. Rc1 {[%clk 0:01:01]}  Rad8 {[%clk 0:02:47]} 18. Qc2 {[%clk 0:00:56]}  g6 {[%clk 0:02:44]} 19. h3 {[%clk 0:00:44]}  Qh4 {[%clk 0:02:41]} 20. Rfd1 {[%clk 0:00:27]}  f5 {[%clk 0:02:38]} 21. Bd3 {[%clk 0:00:26]}  Rd7 {[%clk 0:02:28]} 22. Bf1 {[%clk 0:00:25]}  Red8 {[%clk 0:02:26]} 23. Rxd7 {[%clk 0:00:24]}  Rxd7 {[%clk 0:02:27]} 24. Rd1 {[%clk 0:00:24]}  Rxd1 {[%clk 0:02:27]} 25. Qxd1 {[%clk 0:00:25]}  Kf7 {[%clk 0:02:20]} 26. g3 {[%clk 0:00:25]}  Qe7 {[%clk 0:02:17]} 27. c5 {[%clk 0:00:24]}  h5 {[%clk 0:02:12]} 28. Bg2 {[%clk 0:00:23]}  h4 {[%clk 0:02:11]} 29. g4 {[%clk 0:00:21]}  fxg4 {[%clk 0:02:09]} 30. hxg4 {[%clk 0:00:20]}  Qg5 {[%clk 0:02:09]} 31. Qf3+ {[%clk 0:00:20]}  Kg8 {[%clk 0:01:58]} 32. Bh3 {[%clk 0:00:15]}  Bd5 {[%clk 0:01:55]} 33. e4 {[%clk 0:00:13]}  Be6 {[%clk 0:01:50]} 34. Kh2 {[%clk 0:00:13]}  Kg7 {[%clk 0:01:34]} 35. Qd3 {[%clk 0:00:12]}  Qf4+ {[%clk 0:01:15]} 36. Kg2 {[%clk 0:00:10]}  Bxg4 {[%clk 0:01:12]} 37. Bxg4 {[%clk 0:00:08]}  Qxg4+ {[%clk 0:01:13]} 38. Kh2 {[%clk 0:00:08]}  g5 {[%clk 0:01:07]} 39. Bc3 {[%clk 0:00:09]}  Qe6 {[%clk 0:01:02]} 40. Bd2 {[%clk 0:00:09]}  Kg6 {[%clk 0:00:55]} 41. Be3 {[%clk 0:00:08]}  g4 {[%clk 0:00:39]} 42. Qd1 {[%clk 0:00:07]}  Kh5 {[%clk 0:00:35]} 43. f3 {[%clk 0:00:04]}  g3+ {[%clk 0:00:28]} 44. Kg2 {[%clk 0:00:04]}  Qa2+ {[%clk 0:00:22]} 45. Kf1 {[%clk 0:00:02]}  h3 {[%clk 0:00:18]} 46. f4+ {[%clk 0:00:02]}  Kh4 {[%clk 0:00:17]} 47. f5 {[%clk 0:00:00]}  Qc4+ {[%clk 0:00:15]} 0-1